bitfinex/quotes_BTCUSD_20251221
["timestamp","ask_amount","ask_price","bid_price","bid_amount"]
[1766312200421,0.01053219,88945.0,88933.0,0.01124441]
[1766312200620,0.01053219,88944.0,88933.0,0.01124441]
[1766312200828,0.00833155,88946.0,88933.0,0.01124441]
[1766312201038,0.01053219,88945.0,88928.0,0.66064509]
[1766312201242,0.01881533,88944.0,88928.0,0.01688505]
[1766312201448,0.01053219,88943.0,88929.0,0.01124492]
[1766312201654,0.00828314,88942.0,88928.0,0.00564]
[1766312201869,0.00828314,88942.0,88928.0,0.01688505]
[1766312202076,0.01952616,88944.0,88928.0,0.00564]
[1766312202306,0.01053419,88943.0,88928.0,0.00564]
[1766312202512,0.0112434,88941.0,88928.0,0.00564]
[1766312202715,0.00828314,88940.0,88928.0,0.00564]
[1766312203746,0.01952642,88942.0,88928.0,0.00564]
[1766312203953,0.01053892,88941.0,88928.0,0.00564]
[1766312204153,0.01882206,88940.0,88928.0,0.00564]
[1766312204326,0.00828314,88940.0,88928.0,0.00564]
[1766312205135,0.00828314,88941.0,88928.0,0.00564]
[1766312205333,0.01053877,88940.0,88928.0,0.00564]
[1766312205543,0.00828314,88939.0,88928.0,0.00564]
[1766312206701,0.00828314,88940.0,88928.0,0.00564]
[1766312207667,0.01952654,88941.0,88928.0,0.00564]
[1766312207915,0.01053909,88940.0,88928.0,0.00564]
[1766312208126,4.841e-05,88946.0,88928.0,0.00564]
[1766312208350,0.02178251,88945.0,88940.0,0.000549]
[1766312208581,0.01053961,88944.0,88928.0,0.60442]
[1766312208787,0.01053961,88943.0,88928.0,0.61566505]
[1766312209002,0.01053961,88942.0,88928.0,0.60442]
[1766312209214,0.01053961,88941.0,88928.0,0.01688505]
[1766312209418,0.01053961,88940.0,88928.0,0.01688505]
[1766312209626,0.0112429,88945.0,88928.0,0.01688505]
[1766312209844,0.02178439,88944.0,88928.0,0.01688505]
[1766312210014,0.01054137,88943.0,88928.0,0.01688505]
[1766312210187,0.01054137,88942.0,88928.0,0.01688505]
[1766312210385,0.01054137,88941.0,88928.0,0.01688505]
[1766312210632,0.01054137,88940.0,88929.0,0.01124492]
[1766312210827,0.01054137,88939.0,88929.0,0.01124492]
[1766312210983,0.01124302,88944.0,88928.0,0.00564]
[1766312211183,0.01055068,88943.0,88928.0,0.01688505]
[1766312211380,0.01055068,88942.0,88928.0,0.01688505]
[1766312211625,0.01055068,88941.0,88928.0,0.00564]
[1766312211783,0.01055068,88940.0,88928.0,0.00564]
[1766312212101,0.01055068,88939.0,88928.0,0.00564]
[1766312212333,0.01055068,88938.0,88928.0,0.00564]
[1766312212543,0.01055068,88937.0,88928.0,0.00564]
[1766312212750,0.0112429,88945.0,88937.0,0.000549]
[1766312212946,0.01055403,88944.0,88937.0,0.000549]
[1766312213186,0.01055403,88943.0,88928.0,0.61566505]
[1766312213411,0.00055,88928.0,88925.0,0.01688543]
[1766312213587,0.00055,88928.0,88925.0,0.00564]
[1766312213764,0.00564,88940.0,88925.0,0.00564]
[1766312214123,0.01055405,88939.0,88925.0,0.01688543]
[1766312214377,0.01055405,88938.0,88925.0,0.01688543]
[1766312214602,0.01055405,88937.0,88925.0,0.01688543]
[1766312214840,0.01055405,88936.0,88925.0,0.01688543]
[1766312215053,0.01055405,88935.0,88925.0,0.01688543]
[1766312215299,0.00564,88940.0,88925.0,0.01688543]
[1766312215538,0.01055405,88939.0,88925.0,0.01688543]
[1766312215785,0.01055405,88938.0,88925.0,0.00564]
[1766312216039,0.01055405,88937.0,88925.0,0.00564]
[1766312216234,0.00564,88940.0,88925.0,0.00564]
[1766312216235,0.01055405,88936.0,88925.0,0.00564]
[1766312216441,0.01055405,88935.0,88925.0,0.01688543]
[1766312216644,0.04119973,88943.0,88935.0,0.000549]
[1766312216847,0.01055405,88942.0,88925.0,0.61566543]
[1766312217002,0.01055405,88941.0,88925.0,0.61566543]
[1766312217408,0.02179745,88941.0,88925.0,0.61566543]
[1766312217608,0.01055405,88940.0,88925.0,0.60442]
[1766312217808,0.01055405,88939.0,88926.0,0.06294823]
[1766312217989,0.01055405,88938.0,88928.0,0.59878]
[1766312218196,0.00564,88943.0,88928.0,0.59878]
[1766312218197,0.01055405,88937.0,88928.0,0.59878]
[1766312218461,0.01055405,88936.0,88928.0,0.59878]
[1766312218676,0.00564,88943.0,88927.0,0.48038517]
[1766312218871,0.01055412,88942.0,88927.0,0.48038517]
[1766312219107,0.01055412,88941.0,88927.0,0.48038517]
[1766312219313,0.01055412,88940.0,88928.0,0.01124505]
[1766312219522,0.01055412,88939.0,88928.0,0.01124505]
[1766312219730,0.01055412,88938.0,88929.0,0.01124492]
[1766312219964,0.01055412,88937.0,88929.0,0.01124492]
[1766312220145,0.00564,88943.0,88937.0,0.000549]
[1766312220345,0.01055419,88942.0,88930.0,0.01124479]
[1766312220573,0.01055419,88941.0,88930.0,0.01124479]
[1766312220781,0.01055419,88940.0,88930.0,0.01124479]
[1766312220990,0.01055419,88939.0,88931.0,0.01124467]
[1766312221215,0.01055419,88938.0,88930.0,0.01124479]
[1766312221441,0.01000519,88937.0,88933.0,0.59878]
[1766312221670,0.00568841,88946.0,88933.0,0.59878]
[1766312221671,0.01693118,88946.0,88933.0,0.59878]
[1766312221889,0.01693118,88946.0,88932.0,0.46914]
[1766312222150,0.01124315,88943.0,88931.0,0.00564]
[1766312222425,0.000549,88932.0,88931.0,0.00564]
[1766312222594,0.000549,88932.0,88931.0,0.00509]
[1766312222899,0.0112434,88941.0,88931.0,0.00509]
[1766312223042,0.01124328,88942.0,88931.0,0.00509]
[1766312223245,0.01124315,88943.0,88931.0,0.00509]
[1766312223428,0.01124328,88942.0,88931.0,0.00509]
[1766312224693,0.01124315,88943.0,88931.0,0.00509]
[1766312226043,0.0112429,88945.0,88931.0,0.00509]
[1766312226245,0.01124302,88944.0,88931.0,0.00509]
[1766312226446,0.01124315,88943.0,88931.0,0.00509]
[1766312227057,0.01124302,88944.0,88931.0,0.00509]
[1766312227675,0.03000542,88946.0,88931.0,0.00509]
[1766312227875,0.01693118,88946.0,88931.0,0.00509]
[1766312228513,0.05621451,88945.0,88931.0,0.00509]
[1766312228719,0.01124315,88943.0,88931.0,0.00509]
[1766312228895,0.01124302,88944.0,88931.0,0.00509]
[1766312229096,0.01124315,88943.0,88931.0,0.00509]
[1766312231142,0.01124302,88944.0,88931.0,0.00509]
[1766312232436,0.04124819,88946.0,88931.0,0.00509]
[1766312232798,0.0112429,88945.0,88931.0,0.00509]
[1766312233223,0.04124819,88946.0,88931.0,0.00509]
[1766312233404,0.03040558,88943.0,88931.0,0.00509]
[1766312233622,0.01055744,88942.0,88931.0,0.00509]
[1766312233824,0.01055744,88941.0,88931.0,0.00509]
[1766312234030,0.01055744,88940.0,88931.0,0.00509]
[1766312234232,0.01055744,88939.0,88931.0,0.00509]
[1766312234431,0.01055744,88938.0,88931.0,0.00509]
[1766312234634,0.01055744,88937.0,88931.0,0.00509]
[1766312234999,0.01055744,88936.0,88931.0,0.00509]
[1766312235172,0.01055744,88935.0,88931.0,0.00509]
[1766312235335,0.03040558,88943.0,88931.0,0.00509]
[1766312235538,0.01055753,88942.0,88931.0,0.00509]
[1766312235743,0.01055753,88941.0,88931.0,0.00509]
[1766312235947,0.01055753,88940.0,88931.0,0.00509]
[1766312236128,0.01055753,88939.0,88931.0,0.00509]
[1766312236337,0.01055753,88938.0,88931.0,0.00509]
[1766312236535,0.01055753,88937.0,88931.0,0.00509]
[1766312236813,0.01055753,88936.0,88931.0,0.00509]
[1766312237021,0.03040558,88943.0,88936.0,0.00055]
[1766312237171,0.01055754,88942.0,88936.0,0.00055]
[1766312237380,0.01055754,88941.0,88931.0,0.00509]
[1766312237603,0.01055754,88940.0,88931.0,0.00509]
[1766312237811,0.01055754,88939.0,88931.0,0.00509]
[1766312238010,0.01055754,88938.0,88931.0,0.00509]
[1766312238210,0.01000754,88937.0,88931.0,0.00509]
[1766312238446,0.03040558,88943.0,88931.0,0.00509]
[1766312240456,0.03040558,88943.0,88932.0,0.01124454]
[1766312240686,0.03040558,88944.0,88934.0,0.01124429]
[1766312240956,0.03040558,88944.0,88933.0,1.01889]
[1766312242369,0.03040558,88944.0,88931.0,0.00509]
[1766312244944,0.03040558,88944.0,88931.0,0.01633467]
[1766312245179,0.03045399,88946.0,88932.0,0.01124454]
[1766312245378,4.841e-05,88946.0,88932.0,0.01124454]
[1766312245582,0.01129118,88946.0,88931.0,0.00509]
[1766312245713,4.841e-05,88946.0,88931.0,0.00509]
[1766312245912,4.841e-05,88946.0,88931.0,0.01633467]
[1766312246251,4.841e-05,88946.0,88931.0,0.00509]
[1766312246630,4.841e-05,88946.0,88931.0,0.01633467]
[1766312247238,0.02344388,88946.0,88931.0,0.01633467]
[1766312247554,4.841e-05,88946.0,88931.0,0.01633467]
[1766312250240,0.01055473,88945.0,88931.0,0.01633467]
[1766312250401,0.01055473,88944.0,88932.0,0.01124454]
[1766312250605,0.01055473,88943.0,88931.0,0.01633467]
[1766312250805,0.01055473,88942.0,88931.0,0.01633467]
[1766312251023,0.01055473,88941.0,88931.0,0.01633467]
[1766312251204,0.01055473,88940.0,88931.0,0.01633467]
[1766312251416,0.01055473,88939.0,88931.0,0.01633467]
[1766312251614,0.01055473,88938.0,88931.0,0.01633467]
[1766312251812,4.841e-05,88946.0,88931.0,0.01633467]
[1766312252014,0.01055438,88945.0,88931.0,0.01633467]
[1766312252379,0.01055438,88944.0,88931.0,0.01633467]
[1766312252594,0.01055438,88943.0,88931.0,0.01633467]
[1766312252824,4.841e-05,88946.0,88931.0,0.01633467]
[1766312252825,0.01055438,88942.0,88931.0,0.01633467]
[1766312253096,0.01055438,88941.0,88931.0,0.01633467]
[1766312253300,0.01055438,88940.0,88931.0,0.01633467]
[1766312253596,0.01055438,88939.0,88931.0,0.01633467]
[1766312253924,0.01055438,88938.0,88931.0,0.00509]
[1766312254121,0.01055438,88937.0,88931.0,0.00509]
[1766312254275,0.01124315,88943.0,88931.0,0.00509]
[1766312254481,0.01883749,88942.0,88931.0,0.00509]
[1766312254705,0.01055435,88941.0,88931.0,0.00509]
[1766312254882,0.01055435,88940.0,88931.0,0.00509]
[1766312255099,0.01055435,88939.0,88931.0,0.00509]
[1766312255298,0.00828314,88942.0,88931.0,0.00509]
[1766312255299,0.01055435,88938.0,88931.0,0.00509]
[1766312255506,0.01055435,88937.0,88931.0,0.00509]
[1766312255880,0.01952616,88944.0,88931.0,0.00509]
[1766312256091,0.01055441,88943.0,88931.0,0.00509]
[1766312256239,0.01883755,88942.0,88931.0,0.00509]
[1766312256457,0.01055441,88941.0,88931.0,0.00509]
[1766312257542,0.01055441,88940.0,88931.0,0.00509]
[1766312257806,0.01055441,88939.0,88931.0,0.00509]
[1766312258082,0.01055441,88938.0,88931.0,0.00509]
[1766312258288,0.01055441,88937.0,88931.0,0.00509]
[1766312258441,0.00828314,88944.0,88931.0,0.00509]
[1766312258644,0.0105546,88943.0,88931.0,0.00509]
[1766312258847,0.04169676,88946.0,88931.0,0.00509]
[1766312258848,0.01883774,88942.0,88931.0,0.00509]
[1766312259050,0.0105546,88941.0,88931.0,0.00509]
[1766312259247,0.0105546,88940.0,88931.0,0.00509]
[1766312259449,0.0105546,88939.0,88931.0,0.00509]
[1766312259751,0.0105546,88938.0,88931.0,0.00509]
[1766312259979,0.0105546,88937.0,88931.0,0.00509]
[1766312260183,0.00828314,88945.0,88931.0,0.00509]
[1766312260374,0.01055463,88944.0,88931.0,0.00509]
[1766312260542,0.01883777,88943.0,88931.0,0.00509]
[1766312260738,0.01055463,88942.0,88929.0,1.02591]
[1766312260939,0.01055463,88942.0,88900.0,0.08039504]
[1766312260940,0.01124441,88933.0,88917.0,0.00564]
[1766312261203,0.0105552,88932.0,88917.0,0.00564]
[1766312261409,0.04164898,88941.0,88920.0,0.31197122]
[1766312261620,0.01055401,88940.0,88930.0,0.85486122]
[1766312261788,0.01055401,88939.0,88930.0,0.31197122]
[1766312261983,0.00564,88944.0,88931.0,0.54289]
[1766312261984,0.01055401,88938.0,88931.0,0.54289]
[1766312262168,0.01055401,88937.0,88931.0,0.54289]
[1766312262370,0.00564,88944.0,88931.0,0.54289]
[1766312262731,0.01055338,88943.0,88931.0,0.54289]
[1766312262899,0.01055338,88942.0,88931.0,0.54289]
[1766312263108,0.01055338,88941.0,88931.0,0.54289]
[1766312263287,0.01055338,88940.0,88931.0,0.54289]
[1766312263486,0.01055338,88939.0,88931.0,0.54289]
[1766312263677,0.01055338,88938.0,88931.0,0.54289]
[1766312263878,0.01055338,88937.0,88931.0,0.54289]
[1766312264102,0.00564,88944.0,88931.0,0.54289]
[1766312264435,0.0105534,88943.0,88931.0,0.54289]
[1766312264657,0.0105534,88942.0,88931.0,0.54289]
[1766312264864,0.0105534,88941.0,88931.0,0.54289]
[1766312265035,0.0105534,88940.0,88931.0,0.54289]
[1766312265269,0.00564,88944.0,88931.0,0.54289]
[1766312265466,0.01055346,88943.0,88931.0,0.54289]
[1766312265627,0.01055346,88942.0,88932.0,0.54289]
[1766312265825,0.01055346,88941.0,88932.0,0.54289]
[1766312266022,0.01055346,88940.0,88932.0,0.54289]
[1766312266230,0.01055346,88939.0,88933.0,0.54289]
[1766312266428,0.01055346,88938.0,88933.0,0.54289]
[1766312266625,0.01055346,88937.0,88933.0,0.54289]
[1766312266826,0.03045399,88946.0,88935.0,0.54289]
[1766312267028,0.02179639,88945.0,88935.0,0.54853]
[1766312267228,0.02179651,88944.0,88935.0,0.00564]
[1766312267567,0.01055349,88943.0,88935.0,0.00564]
[1766312267772,0.01055349,88942.0,88935.0,0.00564]
[1766312268000,0.01055349,88942.0,88935.0,0.005091]
[1766312268001,0.00828314,88941.0,88935.0,0.005091]
[1766312268154,0.01055349,88940.0,88935.0,0.005091]
[1766312268581,0.0195268,88939.0,88935.0,0.005091]
[1766312268805,0.01055349,88938.0,88935.0,0.005091]
[1766312270173,0.01055349,88937.0,88935.0,0.005091]
[1766312270353,0.01055349,88936.0,88935.0,0.005091]
[1766312270554,0.01055349,88936.0,88930.0,0.00564]
[1766312270759,0.00828314,88940.0,88930.0,0.00564]
[1766312270963,0.01055363,88939.0,88930.0,0.00564]
[1766312271146,0.01883677,88938.0,88930.0,0.00564]
[1766312271328,0.01055363,88937.0,88930.0,0.00564]
[1766312271529,0.01055363,88936.0,88930.0,0.00564]
[1766312271733,0.00828314,88941.0,88930.0,0.00564]
[1766312271982,0.01055361,88940.0,88930.0,0.00564]
[1766312272181,0.01883675,88939.0,88930.0,0.00564]
[1766312272384,0.01055361,88938.0,88930.0,0.00564]
[1766312272679,0.01055361,88937.0,88930.0,0.00564]
[1766312272844,0.01055361,88936.0,88930.0,0.00564]
[1766312273066,0.00828314,88941.0,88930.0,0.00564]
[1766312273275,0.01055359,88940.0,88930.0,0.00564]
[1766312273447,0.01883673,88939.0,88930.0,0.00564]
[1766312273655,0.01055359,88938.0,88930.0,0.00564]
[1766312273853,0.01055359,88937.0,88930.0,0.00509]
[1766312274068,0.02179763,88936.0,88930.0,0.00509]
[1766312274407,0.03008089,88935.0,88930.0,0.00509]
[1766312274580,0.03008089,88935.0,88916.0,0.02248984]
[1766312274581,0.03008102,88934.0,88921.0,0.00564]
[1766312274763,0.021798,88933.0,88921.0,0.00564]
[1766312274969,0.01952768,88932.0,88921.0,0.00564]
[1766312275167,0.01124467,88931.0,88921.0,0.00564]
[1766312275533,0.00828314,88930.0,88921.0,0.00564]
[1766312276268,0.01952793,88930.0,88914.0,0.01124682]
[1766312276496,0.00828314,88930.0,88918.0,0.00564]
[1766312277112,0.01952793,88930.0,88918.0,0.00564]
[1766312277271,0.00828314,88930.0,88918.0,0.00564]
[1766312278761,0.02431521,88933.0,88918.0,0.00564]
[1766312279128,0.01055136,88932.0,88918.0,0.54853]
[1766312279340,0.01124441,88933.0,88918.0,0.54853]
[1766312279522,0.01124467,88931.0,88918.0,0.54853]
[1766312279723,0.01124454,88932.0,88918.0,0.54853]
[1766312280950,0.01124429,88934.0,88918.0,0.54853]
[1766312281275,0.01055111,88933.0,88920.0,0.31197122]
[1766312281410,0.01055077,88932.0,88920.0,0.31197122]
[1766312281623,0.01124429,88934.0,88920.0,0.31197122]
[1766312281835,0.01055076,88933.0,88920.0,0.31197122]
[1766312282212,0.00564,88934.0,88921.0,0.01349512]
[1766312282417,0.01055076,88933.0,88921.0,0.01349512]
[1766312282553,0.00564,88934.0,88921.0,0.01349512]
[1766312282894,0.01055061,88933.0,88921.0,0.55638512]
[1766312283095,0.00564,88934.0,88921.0,0.54289]
[1766312283298,0.01055061,88933.0,88922.0,0.01349497]
[1766312283455,0.00564,88934.0,88922.0,0.01349497]
[1766312283653,0.01055053,88933.0,88922.0,0.01349497]
[1766312283877,0.02248807,88937.0,88922.0,0.01349497]
[1766312284076,0.01055053,88936.0,88922.0,0.01349497]
[1766312284279,0.01055053,88935.0,88925.0,0.54289]
[1766312284456,0.01055053,88934.0,88925.0,0.54289]
[1766312284663,0.01055053,88933.0,88925.0,0.54289]
[1766312284860,0.02431521,88939.0,88933.0,0.563689]
[1766312285206,0.02812,88944.0,88935.0,0.01124416]
[1766312285413,0.02812,88944.0,88934.0,0.00564]
[1766312285746,0.02812,88944.0,88935.0,0.01124416]
[1766312286301,0.02812,88944.0,88935.0,0.00560405]
[1766312287076,0.02812,88944.0,88934.0,0.01688429]
[1766312287296,0.02812,88944.0,88935.0,0.01124416]
[1766312287471,0.02812,88944.0,88934.0,0.01688429]
[1766312288143,0.02812,88944.0,88934.0,0.00564]
[1766312288891,0.02812,88944.0,88934.0,0.01688429]
[1766312289297,0.02812,88944.0,88935.0,0.01124416]
[1766312289868,0.02812,88944.0,88935.0,1e-08]
[1766312290938,4.841e-05,88946.0,88935.0,1e-08]
[1766312291396,4.841e-05,88946.0,88934.0,0.07310571]
[1766312291548,0.47093,88945.0,88934.0,0.07310571]
[1766312291751,0.02431521,88944.0,88934.0,0.07310571]
[1766312291957,4.841e-05,88946.0,88937.0,1e-08]
[1766312292155,4.841e-05,88946.0,88934.0,0.01518787]
[1766312292356,4.841e-05,88946.0,88935.0,0.01124416]
[1766312293316,4.841e-05,88946.0,88935.0,1e-08]
[1766312293656,0.00564,88950.0,88935.0,1e-08]
[1766312293857,0.00564,88950.0,88935.0,4.842e-05]
[1766312294055,0.00564,88950.0,88934.0,0.01518787]
[1766312294056,0.00564,88950.0,88934.0,0.00394358]
[1766312294471,0.57438,88950.0,88937.0,1e-08]
[1766312294769,0.01124138,88957.0,88938.0,1e-08]
[1766312294770,0.00564,88957.0,88938.0,1e-08]
[1766312294976,0.00564,88957.0,88939.0,1e-08]
[1766312295177,1.04531,88957.0,88931.0,0.03378163]
[1766312295377,0.02430252,88956.0,88934.0,0.05622089]
[1766312295579,0.01688138,88957.0,88934.0,0.05622089]
[1766312295793,0.01124176,88954.0,88934.0,0.61936089]
[1766312296135,0.01124176,88954.0,88934.0,1.11876089]
[1766312296514,1.03967,88953.0,88934.0,1.11876089]
[1766312296713,1.03967,88951.0,88934.0,1.11876089]
[1766312296909,1.03967,88949.0,88934.0,1.11876089]
[1766312297077,0.02430252,88948.0,88935.0,0.01124416]
[1766312297277,0.04382818,88948.0,88932.0,0.00564]
[1766312297612,0.00828314,88948.0,88932.0,0.00564]
[1766312297781,0.47093,88945.0,88932.0,0.00564]
[1766312297977,1.03967,88944.0,88932.0,0.00564]
[1766312298602,0.01124239,88949.0,88932.0,0.00564]
[1766312298937,1.03967,88947.0,88932.0,0.01688454]
[1766312299140,0.56874,88946.0,88932.0,0.01688454]
[1766312299340,0.56874,88944.0,88932.0,0.01688239]
[1766312299540,0.56874,88943.0,88932.0,0.01688239]
[1766312299705,0.47093,88942.0,88932.0,0.01688239]
[1766312300911,0.47093,88942.0,88932.0,0.02812693]
[1766312301310,0.47093,88942.0,88932.0,0.01688239]
[1766312302230,0.47093,88942.0,88932.0,0.02812693]
[1766312302431,0.47093,88942.0,88933.0,0.01124441]
[1766312302629,0.47093,88942.0,88932.0,0.02812693]
[1766312302838,0.47093,88942.0,88932.0,0.01688239]
[1766312303076,0.47093,88942.0,88932.0,0.02812693]
[1766312303240,0.103967,88941.0,88932.0,0.02812693]
[1766312303852,0.47093,88942.0,88932.0,0.01688239]
[1766312304178,0.47093,88942.0,88932.0,0.02812693]
[1766312304521,0.47093,88942.0,88932.0,0.01688239]
[1766312304958,0.47093,88942.0,88932.0,0.02812693]
[1766312305159,0.47093,88942.0,88933.0,0.00564]
[1766312310688,0.47093,88942.0,88929.0,0.6306094]
[1766312310689,0.59407,88935.0,88911.0,0.57229]
[1766312310895,0.06294823,88937.0,88920.0,0.01124467]
[1766312310896,0.31201152,88930.0,88920.0,0.01124467]
[1766312311114,0.31201152,88930.0,88921.0,0.00564]
[1766312311115,0.06294823,88923.0,88921.0,0.00564]
[1766312311618,0.06294823,88923.0,88913.0,0.03378791]
[1766312311619,0.00055,88921.0,88913.0,0.03378791]
[1766312311821,0.00055,88921.0,88911.0,1.05165]
[1766312311822,0.00055,88921.0,88917.0,0.00420557]
[1766312312230,0.51398823,88923.0,88917.0,0.00420557]
[1766312314235,0.51398823,88923.0,88912.0,0.01124707]
[1766312314236,0.59407,88922.0,88900.0,1.05165]
[1766312314393,0.59407,88922.0,88895.0,0.06019468]
[1766312314394,0.15135913,88923.0,88895.0,0.00564]
[1766312314395,0.45104,88907.0,88895.0,0.00564]
[1766312314596,0.59407,88904.0,88894.0,0.00564]
[1766312314804,1.08868,88899.0,88885.0,0.01125049]
[1766312315047,1.08868,88899.0,88890.0,0.00564]
[1766312317875,0.31201152,88900.0,88890.0,0.00564]
[1766312317876,1.08704,88898.0,88890.0,0.00564]
[1766312318172,1.08704,88898.0,88890.0,0.00574771]
[1766312319287,0.49461,88898.0,88890.0,0.00574771]
[1766312321944,1.08704,88898.0,88890.0,0.00574771]
[1766312322951,0.01124846,88901.0,88890.0,0.00574771]
[1766312323159,0.49461,88897.0,88890.0,0.00519771]
[1766312323368,0.59243,88892.0,88883.0,0.045]
[1766312323509,1.08704,88899.0,88886.0,0.00564]
[1766312323954,0.32326011,88900.0,88886.0,0.00564]
[1766312324131,0.49461,88896.0,88886.0,0.00564]
[1766312324327,0.49461,88894.0,88886.0,0.00564]
[1766312324551,0.59243,88893.0,88886.0,0.00564]
[1766312324953,0.59243,88893.0,88886.0,0.0025]
[1766312326469,0.49461,88894.0,88893.0,0.000549]
[1766312326670,0.49406,88894.0,88893.0,0.000549]
[1766312327218,0.49406,88894.0,88886.0,0.0025]
[1766312328162,1.08649,88894.0,88886.0,0.0025]
[1766312328531,0.01125061,88900.0,88886.0,0.0025]
[1766312328734,0.32326213,88900.0,88886.0,1.0516]
[1766312329095,1.41030213,88900.0,88886.0,1.0516]
[1766312329298,0.91569213,88900.0,88886.0,1.0516]
[1766312329487,1.08704,88899.0,88886.0,1.0516]
[1766312331756,1.08704,88899.0,88887.0,1.0491]
[1766312333178,0.49461,88899.0,88886.0,0.01375036]
[1766312333494,0.49461,88899.0,88887.0,1.0491]
[1766312333626,0.49461,88899.0,88886.0,0.01375036]
[1766312333826,0.31201152,88900.0,88890.0,0.46031]
[1766312334025,0.59807,88903.0,88891.0,0.58879]
[1766312334453,0.00564,88902.0,88894.0,0.46031]
[1766312334658,0.00564,88902.0,88894.0,1.0491]
[1766312342711,0.00564,88902.0,88894.0,0.45976]
[1766312344169,0.01688834,88902.0,88894.0,0.45976]
[1766312344373,0.01055902,88901.0,88894.0,0.45976]
[1766312344534,0.01055902,88900.0,88894.0,0.45976]
[1766312344740,0.00564,88902.0,88894.0,0.45976]
[1766312344941,0.01055902,88901.0,88894.0,0.45976]
[1766312345260,0.01055902,88900.0,88894.0,0.45976]
[1766312345445,0.00564,88902.0,88894.0,0.45976]
[1766312345795,0.0105593,88901.0,88894.0,0.45976]
[1766312345927,1.08926789,88900.0,88892.0,0.00564]
[1766312346134,1.06746,88898.0,88892.0,0.00564]
[1766312349012,1.06746,88898.0,88887.0,0.00564]
[1766312354874,0.02433478,88897.0,88887.0,0.00564]
[1766312355504,0.02433478,88897.0,88871.0,0.00024455]
[1766312355505,0.01125074,88883.0,88871.0,0.00024455]
[1766312355735,1.06746,88880.0,88871.0,0.00024455]
[1766312355957,0.01056284,88879.0,88871.0,0.00024455]
[1766312356166,1.07871112,88880.0,88871.0,0.00024455]
[1766312356709,0.46723,88880.0,88871.0,0.00024455]
[1766312357757,0.03380915,88881.0,88880.0,0.000549]
[1766312357944,0.03944915,88881.0,88880.0,0.000549]
[1766312358258,0.03944915,88881.0,88871.0,1.07142455]
[1766312358409,0.47848023,88887.0,88871.0,1.07142455]
[1766312358410,0.00564,88894.0,88882.0,0.6014]
[1766312358607,0.01124872,88899.0,88882.0,0.6014]
[1766312358608,0.00564,88898.0,88884.0,0.6014]
[1766312358852,0.01054065,88897.0,88886.0,0.6014]
[1766312359051,0.01054065,88897.0,88882.0,0.00574752]
[1766312359052,0.01054065,88896.0,88882.0,0.60714752]
[1766312359224,1.06746,88894.0,88882.0,0.00574752]
[1766312360635,0.46723,88903.0,88884.0,0.6014]
[1766312360835,0.04046173,88902.0,88887.0,0.61265023]
[1766312361036,0.00564,88902.0,88889.0,0.6014]
[1766312362857,0.47287,88902.0,88889.0,0.6014]
[1766312363654,1.06746,88902.0,88890.0,0.00564]
[1766312364060,1.06746,88901.0,88890.0,0.00564]
[1766312364268,0.46723,88900.0,88890.0,0.00564]
[1766312366515,1.02983,88900.0,88890.0,0.00564]
[1766312366882,1.04991,88898.0,88890.0,0.00564]
[1766312369358,0.48731,88895.0,88884.0,0.00564]
[1766312369510,0.32919341,88900.0,88884.0,0.00564]
[1766312369511,0.48731,88891.0,88884.0,0.00564]
[1766312370515,0.50647765,88891.0,88884.0,0.00564]
[1766312370719,0.48731,88891.0,88884.0,0.00564]
[1766312372128,1.04991,88899.0,88884.0,0.01689061]
[1766312372330,0.00564,88900.0,88884.0,0.01689061]
[1766312372554,1.04991,88899.0,88884.0,0.00564]
[1766312372810,1.04991,88899.0,88884.0,0.01689061]
[1766312373127,0.00564,88900.0,88884.0,0.00564]
[1766312373333,1.04991,88899.0,88884.0,0.00564]
[1766312373729,0.00564,88900.0,88884.0,0.00564]
[1766312374367,1.04991,88899.0,88884.0,0.00564]
[1766312374884,0.00564,88900.0,88884.0,0.00564]
[1766312375108,0.96238,88899.0,88884.0,0.00564]
[1766312375242,0.00564,88900.0,88884.0,0.00564]
[1766312376124,0.01124846,88901.0,88884.0,0.00564]
[1766312376325,0.4747,88899.0,88884.0,0.00564]
[1766312376530,0.4747,88897.0,88884.0,0.00564]
[1766312376879,0.00564,88900.0,88884.0,0.01689061]
[1766312377044,0.96238,88899.0,88884.0,0.01689061]
[1766312377254,0.00564,88898.0,88884.0,0.01689061]
[1766312377458,0.00564,88898.0,88884.0,0.00564]
[1766312377881,0.96238,88897.0,88884.0,0.00564]
[1766312378287,0.48768,88896.0,88884.0,0.00564]
[1766312378463,0.4747,88895.0,88884.0,0.00564]
[1766312378645,0.96238,88895.0,88884.0,0.01689061]
[1766312379475,0.4747,88895.0,88885.0,0.01125049]
[1766312379674,0.474151,88895.0,88885.0,0.01125049]
[1766312380992,0.474151,88895.0,88884.0,0.99956061]
[1766312381211,0.474151,88895.0,88885.0,0.01125049]
[1766312381414,0.474151,88895.0,88885.0,0.99392049]
[1766312381751,0.47165448,88895.0,88886.0,0.01125036]
[1766312383992,0.47165448,88895.0,88885.0,0.99392049]
[1766312388067,0.47165448,88895.0,88885.0,0.98267]
[1766312388270,0.47165448,88895.0,88885.0,0.99392049]
[1766312389387,0.47165448,88895.0,88885.0,0.98267]
[1766312390246,0.02433324,88894.0,88885.0,0.98267]
[1766312390651,0.02433324,88894.0,88885.0,0.99392049]
[1766312391180,0.02433324,88894.0,88886.0,0.99392036]
[1766312391378,0.02997324,88898.0,88886.0,0.99392036]
[1766312391554,0.01056145,88897.0,88886.0,0.99392036]
[1766312391750,0.01056145,88896.0,88886.0,0.99392036]
[1766312391954,0.02997324,88898.0,88886.0,0.99392036]
[1766312392182,0.01056145,88897.0,88886.0,0.99392036]
[1766312392376,0.01056145,88896.0,88886.0,0.99392036]
[1766312392583,0.02997324,88898.0,88886.0,0.99392036]
[1766312392763,0.01056136,88897.0,88886.0,0.99392036]
[1766312392980,0.01056136,88896.0,88887.0,0.01125023]
[1766312393224,0.02997324,88898.0,88886.0,0.98267]
[1766312393392,0.01056115,88897.0,88886.0,0.99392036]
[1766312393633,0.02433324,88898.0,88886.0,0.98267]
[1766312393634,0.01056115,88896.0,88886.0,0.98267]
[1766312393838,0.02997324,88898.0,88887.0,0.51098]
[1766312394098,0.01056005,88897.0,88887.0,0.51098]
[1766312394305,0.01056005,88896.0,88887.0,0.51098]
[1766312394513,0.02997324,88898.0,88887.0,0.51098]
[1766312394646,0.01055999,88897.0,88887.0,0.51098]
[1766312394846,0.01055999,88896.0,88887.0,0.51098]